[Event "*** Titled Tuesday Blitz"]
[Site "Chess.com"]
[Date "2019.12.03"]
[Round "2"]
[White "Gennady_Kozlov"]
[Black "VladimirBelous"]
[Result "1-0"]
[WhiteElo "2539"]
[BlackElo "2729"]
[TimeControl "180+2"]
[EndTime "13:19:50 PST"]
[Termination "Gennady_Kozlov won by resignation"]

1. b3 {[%clk 0:03:01.9]} 1... d6 {[%clk 0:02:56.6]} 2. Bb2 {[%clk 0:03:03.8]}
2... Nd7 {[%clk 0:02:56.7]} 3. f4 {[%clk 0:03:03.3]} 3... Ngf6 {[%clk
0:02:55.1]} 4. Nf3 {[%clk 0:03:03.2]} 4... c5 {[%clk 0:02:55.4]} 5. e3 {[%clk
0:03:04]} 5... g6 {[%clk 0:02:55.8]} 6. a4 {[%clk 0:03:01.2]} 6... Bg7 {[%clk
0:02:56.5]} 7. a5 {[%clk 0:03:01.6]} 7... O-O {[%clk 0:02:57.6]} 8. Bc4 {[%clk
0:03:02.3]} 8... e5 {[%clk 0:02:51.5]} 9. fxe5 {[%clk 0:03:01.6]} 9... Ng4
{[%clk 0:02:52.3]} 10. O-O {[%clk 0:03:02.5]} 10... Ndxe5 {[%clk 0:02:52.1]} 11.
Nxe5 {[%clk 0:03:03.3]} 11... Nxe5 {[%clk 0:02:50.3]} 12. Nc3 {[%clk 0:03:02.9]}
12... Nxc4 {[%clk 0:02:46.7]} 13. bxc4 {[%clk 0:03:02.6]} 13... Be6 {[%clk
0:02:48.6]} 14. d3 {[%clk 0:03:01.5]} 14... Re8 {[%clk 0:02:46.2]} 15. Qb1
{[%clk 0:02:57]} 15... Qg5 {[%clk 0:02:43.4]} 16. Rf3 {[%clk 0:02:39.3]} 16...
Bg4 {[%clk 0:02:21.8]} 17. Rg3 {[%clk 0:02:26.5]} 17... Rxe3 {[%clk 0:02:21.9]}
18. Ne4 {[%clk 0:02:27.3]} 18... Rxe4 {[%clk 0:02:07.6]} 19. dxe4 {[%clk
0:02:25]} 19... Bxb2 {[%clk 0:02:00.1]} 20. Qxb2 {[%clk 0:02:24.5]} 20... h5
{[%clk 0:02:02]} 21. Qxb7 {[%clk 0:02:08.4]} 21... Re8 {[%clk 0:02:02.9]} 22.
Rf1 {[%clk 0:01:55.9]} 22... Re7 {[%clk 0:02:00.9]} 23. Qb8+ {[%clk 0:01:54.8]}
23... Kg7 {[%clk 0:02:02.3]} 24. Qxd6 {[%clk 0:01:53.1]} 24... Re6 {[%clk
0:01:52.8]} 25. Qc7 {[%clk 0:01:37.7]} 25... Re7 {[%clk 0:01:50.8]} 26. Qd8
{[%clk 0:01:38.5]} 26... Qe5 {[%clk 0:01:47.3]} 27. h3 {[%clk 0:01:26.9]} 27...
Rd7 {[%clk 0:01:35]} 28. Qh4 {[%clk 0:01:23.4]} 28... g5 {[%clk 0:01:11.5]} 29.
Rxg4 {[%clk 0:01:24.3]} 29... hxg4 {[%clk 0:01:12.6]} 30. Qxg4 {[%clk
0:01:25.9]} 30... Qd4+ {[%clk 0:01:06.5]} 31. Kh2 {[%clk 0:01:24.1]} 31... f6
{[%clk 0:01:08.1]} 32. h4 {[%clk 0:01:23.8]} 32... Re7 {[%clk 0:01:06.8]} 33.
hxg5 {[%clk 0:01:24.3]} 33... Qe5+ {[%clk 0:01:08.5]} 34. Qg3 {[%clk 0:01:20.9]}
34... Qxg5 {[%clk 0:01:05.3]} 35. Qxg5+ {[%clk 0:01:20.7]} 35... fxg5 {[%clk
0:01:07.2]} 36. Rf5 {[%clk 0:01:21.3]} 36... Kg6 {[%clk 0:01:06.2]} 37. Rxc5
{[%clk 0:01:20.4]} 37... Rxe4 {[%clk 0:01:08.1]} 38. Rc7 {[%clk 0:01:20.5]}
38... Kf5 {[%clk 0:01:08.7]} 39. Kg3 {[%clk 0:01:20.2]} 39... Rf4 {[%clk
0:01:09.7]} 40. Rf7+ {[%clk 0:01:20.4]} 1-0

[Event "*** Titled Tuesday Blitz"]
[Site "Chess.com"]
[Date "2019.12.03"]
[Round "2"]
[White "Bagirova"]
[Black "JoakimVonAnd"]
[Result "1-0"]
[WhiteElo "2115"]
[BlackElo "2385"]
[TimeControl "180+2"]
[EndTime "13:19:50 PST"]
[Termination "Bagirova won by resignation"]

1. e4 {[%clk 0:03:01.9]} 1... c6 {[%clk 0:03:00.8]} 2. Nf3 {[%clk 0:03:02.1]}
2... d5 {[%clk 0:03:02.7]} 3. Nc3 {[%clk 0:03:02.4]} 3... Bg4 {[%clk 0:03:03.5]}
4. d4 {[%clk 0:02:56.7]} 4... e6 {[%clk 0:03:01.7]} 5. h3 {[%clk 0:02:56.6]}
5... Bxf3 {[%clk 0:03:00.6]} 6. Qxf3 {[%clk 0:02:56.9]} 6... dxe4 {[%clk
0:02:58.2]} 7. Qxe4 {[%clk 0:02:54.9]} 7... Nf6 {[%clk 0:02:58.4]} 8. Qd3 {[%clk
0:02:49.6]} 8... Nbd7 {[%clk 0:02:58.5]} 9. g3 {[%clk 0:02:46.1]} 9... Bd6
{[%clk 0:02:55.9]} 10. Bg2 {[%clk 0:02:46.5]} 10... O-O {[%clk 0:02:56]} 11. O-O
{[%clk 0:02:47.2]} 11... Qc7 {[%clk 0:02:56.3]} 12. a4 {[%clk 0:02:46.9]} 12...
e5 {[%clk 0:02:54.8]} 13. d5 {[%clk 0:02:27.7]} 13... cxd5 {[%clk 0:02:45.6]}
14. Nxd5 {[%clk 0:02:20.8]} 14... Nxd5 {[%clk 0:02:46.5]} 15. Qxd5 {[%clk
0:02:17.9]} 15... Nf6 {[%clk 0:02:44.3]} 16. Qxb7 {[%clk 0:02:14.2]} 16... Qxb7
{[%clk 0:02:45.3]} 17. Bxb7 {[%clk 0:02:15.1]} 17... Rab8 {[%clk 0:02:47]} 18.
Bg2 {[%clk 0:02:11.3]} 18... Rfc8 {[%clk 0:02:46.8]} 19. c3 {[%clk 0:02:05.7]}
19... a5 {[%clk 0:02:47.7]} 20. Rd1 {[%clk 0:02:05.6]} 20... Bc5 {[%clk
0:02:45.1]} 21. Rb1 {[%clk 0:01:53.1]} 21... Ba3 {[%clk 0:02:34.2]} 22. b4
{[%clk 0:01:14.5]} 22... axb4 {[%clk 0:02:26.4]} 23. cxb4 {[%clk 0:01:14.4]}
23... Bxb4 {[%clk 0:02:22.7]} 24. Bd2 {[%clk 0:01:06.5]} 24... Bc5 {[%clk
0:02:10.7]} 25. a5 {[%clk 0:01:04.9]} 25... h6 {[%clk 0:02:10.9]} 26. a6 {[%clk
0:01:05.2]} 26... Rd8 {[%clk 0:02:06.4]} 27. Rxb8 {[%clk 0:01:00.9]} 27... Rxb8
{[%clk 0:02:06.4]} 28. Bb7 {[%clk 0:01:00.8]} 28... Rd8 {[%clk 0:02:05.5]} 29.
Kf1 {[%clk 0:00:56.5]} 29... Ne8 {[%clk 0:01:51.8]} 30. Ke2 {[%clk 0:00:56.1]}
30... Nd6 {[%clk 0:01:41.7]} 31. Be3 {[%clk 0:00:56.7]} 31... Bxe3 {[%clk
0:01:41.3]} 32. fxe3 {[%clk 0:00:52.8]} 32... Kf8 {[%clk 0:01:35]} 33. a7 {[%clk
0:00:51]} 33... Ke7 {[%clk 0:01:18.2]} 34. a8=Q {[%clk 0:00:50.4]} 34... Rxa8
{[%clk 0:01:19.8]} 1-0

[Event "*** Titled Tuesday Blitz"]
[Site "Chess.com"]
[Date "2019.12.03"]
[Round "2"]
[White "Dhaydon19"]
[Black "Firouzja2003"]
[Result "0-1"]
[WhiteElo "2631"]
[BlackElo "3167"]
[TimeControl "180+2"]
[EndTime "13:19:53 PST"]
[Termination "Firouzja2003 won by resignation"]

1. e4 {[%clk 0:02:45.3]} 1... e5 {[%clk 0:02:59.8]} 2. Nf3 {[%clk 0:02:46.1]}
2... Nc6 {[%clk 0:03:01.1]} 3. Bb5 {[%clk 0:02:47.4]} 3... a6 {[%clk 0:03:02.1]}
4. Ba4 {[%clk 0:02:48.1]} 4... d6 {[%clk 0:03:03.5]} 5. h3 {[%clk 0:02:48.1]}
5... Bd7 {[%clk 0:03:02]} 6. O-O {[%clk 0:02:48]} 6... g6 {[%clk 0:03:01.4]} 7.
d4 {[%clk 0:02:48.5]} 7... Bg7 {[%clk 0:02:55.9]} 8. dxe5 {[%clk 0:02:47.2]}
8... dxe5 {[%clk 0:02:39.3]} 9. Bg5 {[%clk 0:02:46.9]} 9... Nge7 {[%clk
0:02:38.2]} 10. Nc3 {[%clk 0:02:47.1]} 10... h6 {[%clk 0:02:37.8]} 11. Be3
{[%clk 0:02:47.1]} 11... O-O {[%clk 0:02:33.5]} 12. Qd2 {[%clk 0:02:46]} 12...
Kh7 {[%clk 0:02:34.5]} 13. Rfd1 {[%clk 0:02:45.9]} 13... Be6 {[%clk 0:02:36]}
14. Nd5 {[%clk 0:02:37.7]} 14... f5 {[%clk 0:02:10.7]} 15. Nxe7 {[%clk
0:02:20.8]} 15... Qxe7 {[%clk 0:02:11.2]} 16. Bxc6 {[%clk 0:02:17.4]} 16... bxc6
{[%clk 0:02:01.8]} 17. Qa5 {[%clk 0:02:16]} 17... fxe4 {[%clk 0:01:46]} 18. Bc5
{[%clk 0:01:54.2]} 18... Qf7 {[%clk 0:01:33.5]} 19. Bxf8 {[%clk 0:01:43.3]}
19... Rxf8 {[%clk 0:01:34.2]} 20. Nxe5 {[%clk 0:01:39.2]} 20... Qxf2+ {[%clk
0:01:35.3]} 21. Kh1 {[%clk 0:01:39.1]} 21... e3 {[%clk 0:01:21.6]} 22. Nxc6
{[%clk 0:01:16.5]} 22... Bxh3 {[%clk 0:01:06.8]} 23. gxh3 {[%clk 0:00:21.9]}
23... Rf3 {[%clk 0:01:05.2]} 0-1

[Event "*** Titled Tuesday Blitz"]
[Site "Chess.com"]
[Date "2019.12.03"]
[Round "2"]
[White "Eloist"]
[Black "Quiet_Desperation"]
[Result "1-0"]
[WhiteElo "2321"]
[BlackElo "2476"]
[TimeControl "180+2"]
[EndTime "13:20:19 PST"]
[Termination "Eloist won by resignation"]

1. e4 {[%clk 0:03:01.9]} 1... e6 {[%clk 0:03:01]} 2. d4 {[%clk 0:03:02.1]} 2...
d5 {[%clk 0:03:02.3]} 3. Nd2 {[%clk 0:03:03.2]} 3... Nf6 {[%clk 0:03:03.6]} 4.
e5 {[%clk 0:03:04]} 4... Nfd7 {[%clk 0:03:04.9]} 5. c3 {[%clk 0:03:05.1]} 5...
c5 {[%clk 0:03:06.1]} 6. Bd3 {[%clk 0:03:06.2]} 6... Nc6 {[%clk 0:03:07.4]} 7.
Ne2 {[%clk 0:03:07.4]} 7... cxd4 {[%clk 0:03:08.6]} 8. cxd4 {[%clk 0:03:08.1]}
8... f6 {[%clk 0:03:10.1]} 9. exf6 {[%clk 0:03:09]} 9... Nxf6 {[%clk 0:03:12]}
10. Nf3 {[%clk 0:03:08.8]} 10... Bd6 {[%clk 0:03:13.4]} 11. O-O {[%clk
0:03:09.3]} 11... Qc7 {[%clk 0:03:14.7]} 12. Bd2 {[%clk 0:03:07.2]} 12... O-O
{[%clk 0:03:12.9]} 13. Rc1 {[%clk 0:03:06.7]} 13... Bd7 {[%clk 0:03:09.4]} 14.
Ng3 {[%clk 0:03:06.9]} 14... Rae8 {[%clk 0:03:02.8]} 15. Re1 {[%clk 0:03:07.3]}
15... Qb8 {[%clk 0:03:03.7]} 16. Bc3 {[%clk 0:03:05.7]} 16... Bf4 {[%clk
0:02:55.6]} 17. Rc2 {[%clk 0:03:06.1]} 17... Bd6 {[%clk 0:02:55.8]} 18. Ne5
{[%clk 0:03:04.9]} 18... Nb4 {[%clk 0:02:40.5]} 19. Bxb4 {[%clk 0:03:02.4]}
19... Bxb4 {[%clk 0:02:40.8]} 20. Re3 {[%clk 0:02:49.4]} 20... Bd6 {[%clk
0:02:38.3]} 21. Nxd7 {[%clk 0:02:42.2]} 21... Nxd7 {[%clk 0:02:39.1]} 22. Rce2
{[%clk 0:02:09.1]} 22... Rf6 {[%clk 0:02:38.4]} 23. Bb5 {[%clk 0:01:59.3]} 23...
Qc7 {[%clk 0:02:32.5]} 24. Qe1 {[%clk 0:01:57.5]} 24... a6 {[%clk 0:02:31.2]}
25. Bxd7 {[%clk 0:01:39.1]} 25... Qxd7 {[%clk 0:02:33.1]} 26. Nh5 {[%clk
0:01:24.9]} 26... Rh6 {[%clk 0:02:25.8]} 27. Rh3 {[%clk 0:01:21]} 27... Qf7
{[%clk 0:02:20.6]} 28. g4 {[%clk 0:01:06.3]} 28... Kh8 {[%clk 0:01:54.6]} 29.
Ree3 {[%clk 0:01:03]} 29... g6 {[%clk 0:01:28.3]} 30. Rhf3 {[%clk 0:01:01.8]}
30... Qe7 {[%clk 0:01:18.6]} 31. Nf6 {[%clk 0:00:59.9]} 31... Bxh2+ {[%clk
0:01:12.1]} 32. Kg2 {[%clk 0:00:59.3]} 32... Rf8 {[%clk 0:00:51.4]} 33. Rxe6
{[%clk 0:01:00.2]} 33... Qc7 {[%clk 0:00:48]} 34. Nxd5 {[%clk 0:00:41.2]} 1-0

[Event "*** Titled Tuesday Blitz"]
[Site "Chess.com"]
[Date "2019.12.03"]
[Round "2"]
[White "Chempiblinka"]
[Black "becemix"]
[Result "1-0"]
[WhiteElo "2316"]
[BlackElo "2501"]
[TimeControl "180+2"]
[EndTime "13:20:26 PST"]
[Termination "Chempiblinka won by resignation"]

1. Nf3 {[%clk 0:03:01.9]} 1... d6 {[%clk 0:02:56.8]} 2. c4 {[%clk 0:03:02.9]}
2... e5 {[%clk 0:02:57.3]} 3. Nc3 {[%clk 0:03:03.1]} 3... f5 {[%clk 0:02:56.9]}
4. d3 {[%clk 0:03:03.6]} 4... Nf6 {[%clk 0:02:57.9]} 5. g3 {[%clk 0:03:04.9]}
5... Be7 {[%clk 0:02:59.2]} 6. Bg2 {[%clk 0:03:06.4]} 6... O-O {[%clk
0:03:00.6]} 7. Rb1 {[%clk 0:03:06.4]} 7... a5 {[%clk 0:03:01.4]} 8. a3 {[%clk
0:03:07.4]} 8... c6 {[%clk 0:03:01.6]} 9. b4 {[%clk 0:03:08.3]} 9... axb4 {[%clk
0:03:01]} 10. axb4 {[%clk 0:03:10.2]} 10... Na6 {[%clk 0:03:02.8]} 11. O-O
{[%clk 0:03:08.6]} 11... Bd7 {[%clk 0:03:03.2]} 12. c5 {[%clk 0:03:07]} 12...
dxc5 {[%clk 0:02:49.1]} 13. b5 {[%clk 0:03:03]} 13... cxb5 {[%clk 0:02:40.7]}
14. Nxe5 {[%clk 0:03:03.4]} 14... Nb4 {[%clk 0:02:39.2]} 15. Qb3+ {[%clk
0:03:01.8]} 15... Kh8 {[%clk 0:02:21.6]} 16. Nf7+ {[%clk 0:03:02.7]} 16... Rxf7
{[%clk 0:02:22.5]} 17. Qxf7 {[%clk 0:03:04.6]} 17... Bc6 {[%clk 0:02:14.3]} 18.
Bg5 {[%clk 0:02:55.2]} 18... h6 {[%clk 0:02:10.3]} 19. Bf4 {[%clk 0:02:49.5]}
19... Qd7 {[%clk 0:02:10.1]} 20. Be5 {[%clk 0:02:41.9]} 20... Rf8 {[%clk
0:02:06.2]} 21. Qb3 {[%clk 0:02:41.2]} 21... Ng4 {[%clk 0:02:03.9]} 22. Bf4
{[%clk 0:02:37.1]} 22... Qe8 {[%clk 0:01:55.8]} 23. Na2 {[%clk 0:02:25.7]} 23...
Na6 {[%clk 0:01:22.6]} 24. h3 {[%clk 0:02:18.2]} 24... Nf6 {[%clk 0:01:17.4]}
25. Qe6 {[%clk 0:02:15.3]} 25... Nh5 {[%clk 0:00:56.8]} 26. Be5 {[%clk
0:02:14.7]} 26... Bd8 {[%clk 0:00:42.9]} 27. Qxh6+ {[%clk 0:02:07.6]} 27... Kg8
{[%clk 0:00:43.9]} 28. Qe3 {[%clk 0:02:08.5]} 28... Bxg2 {[%clk 0:00:41.3]} 29.
Kxg2 {[%clk 0:02:09.4]} 29... Qc6+ {[%clk 0:00:42.5]} 30. Qf3 {[%clk 0:02:08.9]}
30... Nf6 {[%clk 0:00:34.8]} 31. Nc3 {[%clk 0:02:04.1]} 31... b4 {[%clk
0:00:31.1]} 32. Bxf6 {[%clk 0:02:03.8]} 32... Bxf6 {[%clk 0:00:28.8]} 33. Nd5
{[%clk 0:02:03.8]} 33... Bd8 {[%clk 0:00:16.9]} 34. Rfc1 {[%clk 0:02:03]} 34...
Qe6 {[%clk 0:00:16.8]} 35. Nf4 {[%clk 0:02:00.5]} 35... Qc6 {[%clk 0:00:15.5]}
36. Qxc6 {[%clk 0:01:53.5]} 36... bxc6 {[%clk 0:00:16.4]} 37. d4 {[%clk
0:01:55]} 37... cxd4 {[%clk 0:00:12]} 38. Rxc6 {[%clk 0:01:55.4]} 38... Nb8
{[%clk 0:00:13.2]} 39. Rc8 {[%clk 0:01:55.5]} 1-0

[Event "*** Titled Tuesday Blitz"]
[Site "Chess.com"]
[Date "2019.12.03"]
[Round "2"]
[White "norwaytoadog"]
[Black "ElGasanov"]
[Result "0-1"]
[WhiteElo "2304"]
[BlackElo "2665"]
[TimeControl "180+2"]
[EndTime "13:20:32 PST"]
[Termination "ElGasanov won by resignation"]

1. e4 {[%clk 0:03:01.8]} 1... c5 {[%clk 0:02:54.6]} 2. Nf3 {[%clk 0:03:02.5]}
2... Nc6 {[%clk 0:02:54.9]} 3. Bb5 {[%clk 0:03:03.3]} 3... Nf6 {[%clk
0:02:54.9]} 4. Nc3 {[%clk 0:03:03.4]} 4... Qc7 {[%clk 0:02:55.1]} 5. Bxc6 {[%clk
0:03:03.1]} 5... dxc6 {[%clk 0:02:53.6]} 6. h3 {[%clk 0:03:00.3]} 6... e5 {[%clk
0:02:48.2]} 7. d3 {[%clk 0:03:00.9]} 7... Be7 {[%clk 0:02:47.4]} 8. Be3 {[%clk
0:03:00.2]} 8... Nd7 {[%clk 0:02:47.8]} 9. O-O {[%clk 0:02:58.4]} 9... Nf8
{[%clk 0:02:49]} 10. a3 {[%clk 0:02:59.1]} 10... Ne6 {[%clk 0:02:48.2]} 11. Rb1
{[%clk 0:02:59.6]} 11... O-O {[%clk 0:02:40.3]} 12. b4 {[%clk 0:02:50.2]} 12...
Rd8 {[%clk 0:02:40.4]} 13. b5 {[%clk 0:02:36.8]} 13... Bd7 {[%clk 0:02:20]} 14.
Nd2 {[%clk 0:02:26.2]} 14... Nd4 {[%clk 0:02:16.5]} 15. bxc6 {[%clk 0:02:19.6]}
15... Bxc6 {[%clk 0:02:14.4]} 16. Rb2 {[%clk 0:01:59.5]} 16... b5 {[%clk
0:01:53.1]} 17. Qh5 {[%clk 0:01:26.5]} 17... g6 {[%clk 0:01:41.2]} 18. Qg4
{[%clk 0:01:22.8]} 18... Qa5 {[%clk 0:01:31.5]} 19. Nd5 {[%clk 0:00:54.3]} 19...
Bxd5 {[%clk 0:01:27.2]} 20. exd5 {[%clk 0:00:55.1]} 20... f5 {[%clk 0:01:27.2]}
21. Qd1 {[%clk 0:00:53.6]} 21... Rxd5 {[%clk 0:01:12.1]} 22. Ra2 {[%clk
0:00:40.9]} 22... Rad8 {[%clk 0:00:59.1]} 23. c4 {[%clk 0:00:35]} 23... R5d7
{[%clk 0:00:50.6]} 24. f4 {[%clk 0:00:30.3]} 24... Ne6 {[%clk 0:00:47.5]} 25.
Nb3 {[%clk 0:00:27.6]} 25... Qc3 {[%clk 0:00:44.7]} 26. Bd2 {[%clk 0:00:19.6]}
26... Qxd3 {[%clk 0:00:43.8]} 27. Rf3 {[%clk 0:00:20.1]} 27... Qxc4 {[%clk
0:00:41.5]} 28. Rc3 {[%clk 0:00:17.7]} 28... Qxc3 {[%clk 0:00:42]} 0-1

[Event "*** Titled Tuesday Blitz"]
[Site "Chess.com"]
[Date "2019.12.03"]
[Round "2"]
[White "Denis_Palkovich"]
[Black "Filip_Covic"]
[Result "0-1"]
[WhiteElo "2214"]
[BlackElo "2453"]
[TimeControl "180+2"]
[EndTime "13:20:41 PST"]
[Termination "Filip_Covic won by resignation"]

1. d4 {[%clk 0:02:44.6]} 1... Nf6 {[%clk 0:03:00.2]} 2. Bf4 {[%clk 0:02:37.7]}
2... g6 {[%clk 0:03:00.3]} 3. e3 {[%clk 0:02:35]} 3... Bg7 {[%clk 0:03:00.4]} 4.
Nf3 {[%clk 0:02:35]} 4... d6 {[%clk 0:02:58.6]} 5. h3 {[%clk 0:02:34.7]} 5...
O-O {[%clk 0:02:57.9]} 6. Be2 {[%clk 0:02:36.1]} 6... Nbd7 {[%clk 0:02:48.7]} 7.
O-O {[%clk 0:02:36.2]} 7... Qe8 {[%clk 0:02:47.9]} 8. c4 {[%clk 0:02:30.3]} 8...
e5 {[%clk 0:02:47.6]} 9. Bh2 {[%clk 0:02:31]} 9... Qe7 {[%clk 0:02:44.3]} 10.
Nc3 {[%clk 0:02:30.4]} 10... c6 {[%clk 0:02:43.4]} 11. Rc1 {[%clk 0:02:27.5]}
11... Re8 {[%clk 0:02:43.7]} 12. c5 {[%clk 0:02:12.8]} 12... dxc5 {[%clk
0:01:43.7]} 13. dxe5 {[%clk 0:02:12.7]} 13... Nh5 {[%clk 0:01:18.8]} 14. g4
{[%clk 0:02:12.5]} 14... Nxe5 {[%clk 0:01:19.1]} 15. gxh5 {[%clk 0:01:55.2]}
15... Bxh3 {[%clk 0:01:18.6]} 16. Nxe5 {[%clk 0:01:31.5]} 16... Bxe5 {[%clk
0:01:17.5]} 17. Bxe5 {[%clk 0:01:30.3]} 17... Qxe5 {[%clk 0:01:17.4]} 18. Bf3
{[%clk 0:00:51.5]} 18... Rad8 {[%clk 0:01:10]} 19. Qa4 {[%clk 0:00:43.4]} 19...
Qg5+ {[%clk 0:01:06.8]} 20. Kh2 {[%clk 0:00:37.8]} 20... Bxf1 {[%clk 0:01:07.2]}
21. Rxf1 {[%clk 0:00:37.5]} 21... Rd2 {[%clk 0:01:05.2]} 22. Qg4 {[%clk
0:00:12.6]} 22... Qxg4 {[%clk 0:01:01.7]} 23. Bxg4 {[%clk 0:00:14.5]} 23... Rxe3
{[%clk 0:00:51]} 24. hxg6 {[%clk 0:00:10]} 24... hxg6 {[%clk 0:00:50.7]} 25. Bc8
{[%clk 0:00:11.6]} 25... Re7 {[%clk 0:00:46.5]} 26. Nd1 {[%clk 0:00:10.3]} 26...
f5 {[%clk 0:00:44.5]} 27. Rg1 {[%clk 0:00:03.7]} 27... Kf7 {[%clk 0:00:44.3]}
28. Rg5 {[%clk 0:00:03]} 28... Rxd1 {[%clk 0:00:44.1]} 0-1

[Event "*** Titled Tuesday Blitz"]
[Site "Chess.com"]
[Date "2019.12.03"]
[Round "2"]
[White "FearNoEvil12"]
[Black "boasovietica"]
[Result "0-1"]
[WhiteElo "1975"]
[BlackElo "2393"]
[TimeControl "180+2"]
[EndTime "13:20:44 PST"]
[Termination "boasovietica won by resignation"]

1. e4 {[%clk 0:03:01.9]} 1... e5 {[%clk 0:03:00.3]} 2. d4 {[%clk 0:03:02.6]}
2... exd4 {[%clk 0:03:01.1]} 3. Bc4 {[%clk 0:03:04.1]} 3... Nf6 {[%clk
0:02:56.6]} 4. Nf3 {[%clk 0:03:05.5]} 4... Nc6 {[%clk 0:02:56.2]} 5. e5 {[%clk
0:03:05.6]} 5... d5 {[%clk 0:02:57.2]} 6. Bb5 {[%clk 0:03:06.8]} 6... Ne4 {[%clk
0:02:58.3]} 7. Nxd4 {[%clk 0:03:08.2]} 7... Bc5 {[%clk 0:02:59.7]} 8. O-O {[%clk
0:03:08.2]} 8... Bd7 {[%clk 0:02:56]} 9. Bxc6 {[%clk 0:03:07.5]} 9... bxc6
{[%clk 0:02:56.7]} 10. f3 {[%clk 0:03:08]} 10... Ng5 {[%clk 0:02:52.1]} 11. f4
{[%clk 0:03:09.2]} 11... Ne6 {[%clk 0:02:50.7]} 12. Be3 {[%clk 0:03:09.1]} 12...
f5 {[%clk 0:02:49.1]} 13. c3 {[%clk 0:03:08]} 13... O-O {[%clk 0:02:47.1]} 14.
Nd2 {[%clk 0:03:05]} 14... Bb6 {[%clk 0:02:45.5]} 15. N2f3 {[%clk 0:03:04.7]}
15... c5 {[%clk 0:02:42.7]} 16. Nc2 {[%clk 0:03:04.5]} 16... Bb5 {[%clk
0:02:37.9]} 17. Re1 {[%clk 0:03:04.1]} 17... Bc6 {[%clk 0:02:29.5]} 18. Qd2
{[%clk 0:03:04.3]} 18... Qe7 {[%clk 0:02:29]} 19. Qf2 {[%clk 0:03:04.6]} 19...
Rad8 {[%clk 0:02:28.2]} 20. Rad1 {[%clk 0:03:05.2]} 20... Rd7 {[%clk 0:02:26.8]}
21. b4 {[%clk 0:03:03.7]} 21... cxb4 {[%clk 0:02:21.8]} 22. Nxb4 {[%clk
0:03:03.4]} 22... Bb7 {[%clk 0:02:20.4]} 23. Bxb6 {[%clk 0:03:02]} 23... axb6
{[%clk 0:02:20.7]} 24. Nd4 {[%clk 0:02:58.6]} 24... Nxd4 {[%clk 0:02:17.9]} 25.
Rxd4 {[%clk 0:02:47.6]} 25... c5 {[%clk 0:02:18.2]} 26. Nxd5 {[%clk 0:02:47.2]}
26... Bxd5 {[%clk 0:02:05.2]} 27. Rd2 {[%clk 0:02:46]} 27... Bc6 {[%clk
0:02:03.3]} 28. Rb2 {[%clk 0:02:43.4]} 28... Rfd8 {[%clk 0:02:01.8]} 29. Qe2
{[%clk 0:02:25]} 29... b5 {[%clk 0:01:57.5]} 30. c4 {[%clk 0:02:17.5]} 30... b4
{[%clk 0:01:55.8]} 31. h3 {[%clk 0:02:14.5]} 31... Rd3 {[%clk 0:01:56.1]} 32.
Qf2 {[%clk 0:02:10.8]} 32... R8d4 {[%clk 0:01:52.7]} 33. Kh2 {[%clk 0:02:08.7]}
33... h6 {[%clk 0:01:53]} 34. Rbe2 {[%clk 0:02:03.8]} 34... Qe6 {[%clk 0:01:49]}
35. Qh4 {[%clk 0:02:01.7]} 35... Rxc4 {[%clk 0:01:45.9]} 36. Qh5 {[%clk
0:01:59.8]} 36... Rcd4 {[%clk 0:01:42.8]} 37. g4 {[%clk 0:01:59.3]} 37... fxg4
{[%clk 0:01:34.3]} 38. Qxg4 {[%clk 0:01:59]} 38... Qxg4 {[%clk 0:01:26.2]} 39.
hxg4 {[%clk 0:01:59.1]} 39... Rxf4 {[%clk 0:01:27.5]} 40. e6 {[%clk 0:01:59.6]}
40... Rf8 {[%clk 0:01:12.8]} 41. e7 {[%clk 0:01:56.6]} 41... Re8 {[%clk
0:01:13.9]} 42. Rc1 {[%clk 0:01:51.5]} 42... Rd5 {[%clk 0:01:07.1]} 43. Rec2
{[%clk 0:01:41.1]} 43... Rxe7 {[%clk 0:01:06.3]} 44. Rxc5 {[%clk 0:01:41.7]}
44... Rxc5 {[%clk 0:01:08.2]} 45. Rxc5 {[%clk 0:01:42.3]} 45... Bd7 {[%clk
0:01:09.1]} 46. Rc4 {[%clk 0:01:40]} 46... Re2+ {[%clk 0:01:04.7]} 47. Kg3
{[%clk 0:01:40]} 47... Rb2 {[%clk 0:01:05.4]} 48. Rd4 {[%clk 0:01:38.9]} 48...
Be6 {[%clk 0:01:05.9]} 49. Kf4 {[%clk 0:01:33]} 49... Bxa2 {[%clk 0:01:05.3]}
50. g5 {[%clk 0:01:31.8]} 50... hxg5+ {[%clk 0:01:05.9]} 51. Kxg5 {[%clk
0:01:32.8]} 51... Bb1 {[%clk 0:01:05.3]} 52. Rd8+ {[%clk 0:01:30.9]} 52... Kh7
{[%clk 0:01:06.1]} 53. Rd7 {[%clk 0:01:31.2]} 53... b3 {[%clk 0:01:06.5]} 54.
Rb7 {[%clk 0:01:31.7]} 54... Rg2+ {[%clk 0:01:05.2]} 55. Kf4 {[%clk 0:01:31.1]}
55... b2 {[%clk 0:01:06.3]} 56. Kf3 {[%clk 0:01:27.9]} 56... Rh2 {[%clk
0:01:06.9]} 0-1

[Event "*** Titled Tuesday Blitz"]
[Site "Chess.com"]
[Date "2019.12.03"]
[Round "2"]
[White "Mikhail_Golubev"]
[Black "Bulldog167"]
[Result "0-1"]
[WhiteElo "2593"]
[BlackElo "2903"]
[TimeControl "180+2"]
[EndTime "13:20:46 PST"]
[Termination "Bulldog167 won by resignation"]

1. e4 {[%clk 0:03:01.9]} 1... e6 {[%clk 0:03:01.1]} 2. d4 {[%clk 0:03:01]} 2...
d5 {[%clk 0:03:02.7]} 3. Nc3 {[%clk 0:03:01.7]} 3... Bb4 {[%clk 0:03:03.5]} 4.
e5 {[%clk 0:03:02.2]} 4... c5 {[%clk 0:03:04.5]} 5. a3 {[%clk 0:03:03.4]} 5...
Bxc3+ {[%clk 0:03:06]} 6. bxc3 {[%clk 0:03:03.8]} 6... Ne7 {[%clk 0:03:07.9]} 7.
a4 {[%clk 0:03:04.5]} 7... Nbc6 {[%clk 0:03:08.1]} 8. Nf3 {[%clk 0:03:04.2]}
8... Qa5 {[%clk 0:03:09.1]} 9. Bd2 {[%clk 0:03:03.5]} 9... Bd7 {[%clk
0:03:10.3]} 10. Bb5 {[%clk 0:03:03.8]} 10... c4 {[%clk 0:03:05.9]} 11. O-O
{[%clk 0:02:57.6]} 11... O-O-O {[%clk 0:02:44.9]} 12. Qc1 {[%clk 0:02:49.6]}
12... Qc7 {[%clk 0:02:39.4]} 13. Qa3 {[%clk 0:02:39.4]} 13... f6 {[%clk
0:02:40.1]} 14. a5 {[%clk 0:02:35.3]} 14... fxe5 {[%clk 0:02:17.4]} 15. dxe5
{[%clk 0:02:36.1]} 15... Rhf8 {[%clk 0:01:52.6]} 16. Bxc6 {[%clk 0:02:05]} 16...
Nxc6 {[%clk 0:01:53.5]} 17. Nd4 {[%clk 0:02:03.1]} 17... Nxe5 {[%clk 0:01:48.1]}
18. Rae1 {[%clk 0:01:52.4]} 18... a6 {[%clk 0:01:38.6]} 19. f4 {[%clk
0:01:47.9]} 19... Nc6 {[%clk 0:01:39.9]} 20. Nxc6 {[%clk 0:01:40.1]} 20... Qxc6
{[%clk 0:01:20.1]} 21. Be3 {[%clk 0:01:40.1]} 21... Qa4 {[%clk 0:00:54.4]} 22.
Qc5+ {[%clk 0:01:36.4]} 22... Bc6 {[%clk 0:00:55.8]} 23. Rb1 {[%clk 0:01:33.6]}
23... Rf7 {[%clk 0:00:51]} 24. Rb6 {[%clk 0:01:12.4]} 24... Rc7 {[%clk
0:00:50.2]} 25. Bd4 {[%clk 0:00:52.1]} 25... Qxc2 {[%clk 0:00:48.8]} 26. Rfb1
{[%clk 0:00:26.7]} 26... Bb5 {[%clk 0:00:35.3]} 27. R1xb5 {[%clk 0:00:21.8]}
27... Qc1+ {[%clk 0:00:29.5]} 28. Kf2 {[%clk 0:00:21.7]} 28... Qxf4+ {[%clk
0:00:30.5]} 29. Ke2 {[%clk 0:00:18.5]} 29... Rxc5 {[%clk 0:00:29.7]} 30. Rxc5+
{[%clk 0:00:19.1]} 30... Kb8 {[%clk 0:00:30.9]} 31. Rxe6 {[%clk 0:00:20.1]}
31... Qg4+ {[%clk 0:00:30.6]} 0-1